{"text_format":"3","workbook":"xlsx","n_sheets":16,"sheets":["Инструкция","Титульный","Ставка 1.","Ставка 2. (ВЛ)","Наименования ставок","Ставка 3. (КЛ)","Ставка 4.1.-4.3.","Ставка 4.4.-4.6.","Ставка 5. (ТП без РТП)","Ставка 6. (РТП)","Ставка 7. (ТП>35)","Ставка 8. (ПУ)","Названия ТСО+Ист. фин. тех.лист","Teh_Sheet","1.1Назв. объ. эл. сетевого хоз.","Приложение"],"not_rendered":{"images":2,"macros":1,"defined_names":86},"read":"whole","date_system":"1900"}

{"sheet":"Инструкция","index":0,"n_rows":0,"n_cols":0,"rows_kept":0}

{"sheet":"Титульный","index":1,"n_rows":18,"n_cols":6,"rows_kept":18,"merged":[[3,1,4,3],[7,1,7,2],[9,1,9,2],[11,1,11,2],[13,1,13,2],[15,1,15,2],[17,1,17,2]]}
[]
[{"$nulls":3},"Версия 2.2.1"]
[{"$nulls":5},2019]
[null,{"$f":"\"Информация для расчета ставок платы за технологическое присоединение к электрическим сетям на \" & D10 & \" год\n(фактические данные предоставляются за период \" & D10-4 & \"-\" & D10-2 & \" гг.)\"","v":"Информация для расчета ставок платы за технологическое присоединение к электрическим сетям на 2022 год\n(фактические данные предоставляются за период 2018-2020 гг.)"},{"$nulls":3},2020]
[{"$nulls":5},2021]
[{"$nulls":5},2022]
[]
[null,"Наименование организации",null,"ООО \"Газпром энерго\" "]
[]
[null,"Период регулирования",null,2022]
[]
[null,"Ответственный за заполнение формы",null,"Каримова Лидия Сергеевна"]
[]
[null,"Телефон исполнителя",null,"8 (3462) 75 19 13"]
[]
[null,"Электонная почта",null,"L.Karimova@suf.energo.gazprom.ru"]
[]
[null,"Дата заполнения",null,"2021-09-23"]

{"sheet":"Ставка 1.","index":2,"n_rows":37,"n_cols":8,"rows_kept":37,"merged":[[0,1,2,7],[4,1,5,1],[4,2,5,2],[4,3,4,5],[4,6,5,6],[4,7,5,7]]}
[null,{"$f":"\"Расходы на выполнение мероприятий по технологическому присоединению, \nпредусмотренным подпунктами 'а' и 'в' пункта 16 Методических указаний, за \" & Титульный!D10-4 & \"-\" & Титульный!D10-2 & \" гг.\"","v":"Расходы на выполнение мероприятий по технологическому присоединению, \nпредусмотренным подпунктами 'а' и 'в' пункта 16 Методических указаний, за 2018-2020 гг."}]
[]
[]
[]
[null,"N п/п","Наименование мероприятий","Информация для расчета \nстандартизированной тарифной ставки С1",null,null,"Год","Расходы на одно присоединение (руб. на одно ТП),\n(без НДС)"]
[{"$nulls":3},"Расходы по каждому мероприятию (руб.),\n(без НДС)","Количество технологических присоединений (шт.)","Объем максимальной мощности \n(кВт)"]
[null,1,2,3,4,5,6,7]
[{"$nulls":4},{"$f":"Титульный!D10-4","v":2018}]
[null,1,"Подготовка и выдача сетевой организацией технических условий Заявителю, в том числе:",{"$f":"D10+D11","v":{"v":20151.82,"d":"20,151.82"}},{"$f":"E10+E11","v":{"v":26,"d":"26.00"}},{"$f":"F10+F11","v":{"v":7285.2,"d":"7,285.20"}},{"$f":"Титульный!$D$10-4","v":2018},{"$f":"IFERROR(D9/E9,\"Заполните все столбцы\")","v":775.0699999999999}]
[null," 1.1"," - до 15 кВт (включительно)",{"v":2909.03,"d":"2,909.03"},{"v":15,"d":"15.00"},{"v":191,"d":"191.00"},{"$f":"Титульный!$D$10-4","v":2018},{"$f":"IFERROR(D10/E10,\"Заполните все столбцы\")","v":193.93533333333335}]
[null," 1.2"," - свыше 16 кВт",{"v":17242.79,"d":"17,242.79"},{"v":11,"d":"11.00"},{"v":7094.2,"d":"7,094.20"},{"$f":"Титульный!$D$10-4","v":2018},1567.5263636363636]
[null,2,"Проверка сетевой организацией выполнения технических условий Заявителем",{"$f":"D13+D16","v":{"v":74915.05,"d":"74,915.05"}},{"$f":"E13+E16","v":{"v":26,"d":"26.00"}},{"v":7285.2,"d":"7,285.20"},{"$f":"Титульный!$D$10-4","v":2018},2881.348076923077]
[null,"2.1","Выдача сетевой организацией акта об осуществлении технологического присоединения Заявителям, указанным в абзаце восьмом пункта 24 Методических указаний по определению размера платы за технологическое присоединение к электрическим сетям",{"$f":"D14+D15","v":{"v":26913.706363636364,"d":"26,913.71"}},{"$f":"E14+E15","v":{"v":17,"d":"17.00"}},{"v":383,"d":"383.00"},{"$f":"Титульный!$D$10-4","v":2018},1583.1591978609626]
[null,"2.1.1"," - до 15 кВт (включительно)",{"$f":"9812.7/15*14","v":{"v":9158.52,"d":"9,158.52"}},{"v":14,"d":"14.00"},{"v":183,"d":"183.00"},{"$f":"Титульный!$D$10-4","v":2018},654.1800000000001]
[null,"2.1.2"," - от 16 кВт до 150 кВт",{"$f":"65102.35/11*E15","v":{"v":17755.186363636363,"d":"17,755.19"}},{"v":3,"d":"3.00"},{"v":200,"d":"200.00"},{"$f":"Титульный!$D$10-4","v":2018},5918.395454545454]
[null,"2.2","Проверка сетевой организацией выполнения технических условий Заявителями, указанными в абзаце девятом пункта 24 Методических указаний по определению размера платы за технологическое присоединение к электрическим сетям",{"$f":"D17","v":{"v":48001.343636363636,"d":"48,001.34"}},{"$f":"E17","v":{"v":9,"d":"9.00"}},{"v":6902.2,"d":"6,902.20"},{"$f":"Титульный!$D$10-4","v":2018},5333.482626262627]
[null,"2.2.1"," - свыше 150 кВт",{"$f":"65102.35/11*8+9812.7/15*1","v":{"v":48001.343636363636,"d":"48,001.34"}},{"$f":"6+1+2","v":{"v":9,"d":"9.00"}},{"$f":"8+205+6689.2","v":{"v":6902.2,"d":"6,902.20"}},{"$f":"Титульный!$D$10-4","v":2018},5333.482626262627]
[{"$nulls":4},{"$f":"Титульный!$D$10-3","v":2019}]
[null,"1.","Подготовка и выдача сетевой организацией технических условий Заявителю, в том числе:",{"$f":"D20+D21","v":{"v":53083.969999999994,"d":"53,083.97"}},{"$f":"E20+E21","v":{"v":19,"d":"19.00"}},{"$f":"F20+F21","v":{"v":2467,"d":"2,467.00"}},{"$f":"Титульный!$D$10-3","v":2019},{"$f":"IFERROR(D19/E19,\"Заполните все столбцы\")","v":2793.8931578947363}]
[null," 1.1"," - до 15 кВт (включительно)",{"v":1059.31,"d":"1,059.31"},{"v":11,"d":"11.00"},{"v":120,"d":"120.00"},{"$f":"Титульный!$D$10-3","v":2019},{"$f":"IFERROR(D20/E20,\"Заполните все столбцы\")","v":96.30090909090909}]
[null," 1.2"," - свыше 16 кВт",{"v":52024.659999999996,"d":"52,024.66"},{"v":8,"d":"8.00"},{"v":2347,"d":"2,347.00"},{"$f":"Титульный!$D$10-3","v":2019},6503.0824999999995]
[null,"2.","Проверка сетевой организацией выполнения технических условий Заявителем",{"$f":"D23+D26","v":{"v":17205.1,"d":"17,205.10"}},{"$f":"E23+E26","v":{"v":19,"d":"19.00"}},{"$f":"F23+F26","v":{"v":2467,"d":"2,467.00"}},{"$f":"Титульный!$D$10-3","v":2019},905.5315789473683]
[null,"2.1","Выдача сетевой организацией акта об осуществлении технологического присоединения Заявителям, указанным в абзаце восьмом пункта 24 Методических указаний по определению размера платы за технологическое присоединение к электрическим сетям",{"$f":"D24+D25","v":{"v":2150.6375,"d":"2,150.64"}},{"$f":"E24+E25","v":{"v":11,"d":"11.00"}},{"$f":"F24+F25","v":{"v":155,"d":"155.00"}},{"$f":"Титульный!$D$10-3","v":2019},195.5125]
[null," 2.1.1"," - до 15 кВт (включительно)",{"v":0,"d":"0.00"},{"v":10,"d":"10.00"},{"v":105,"d":"105.00"},{"$f":"Титульный!$D$10-3","v":2019},0]
[null," 2.1.2"," - от 16 кВт до 150 кВт",{"$f":"17205.1/8*E25","v":{"v":2150.6375,"d":"2,150.64"}},{"v":1,"d":"1.00"},{"v":50,"d":"50.00"},{"$f":"Титульный!$D$10-3","v":2019},2150.6375]
[null,"2.2","Проверка сетевой организацией выполнения технических условий Заявителями, указанными в абзаце девятом пункта 24 Методических указаний по определению размера платы за технологическое присоединение к электрическим сетям",{"$f":"D27","v":{"v":15054.462499999998,"d":"15,054.46"}},{"$f":"E27","v":{"v":8,"d":"8.00"}},{"$f":"F27","v":{"v":2312,"d":"2,312.00"}},{"$f":"Титульный!$D$10-3","v":2019},1881.8078124999997]
[null," 2.2.1"," - свыше 150 кВт",{"$f":"17205.1/8*7","v":{"v":15054.462499999998,"d":"15,054.46"}},{"$f":"1+1+6","v":{"v":8,"d":"8.00"}},{"$f":"1600+15+697","v":{"v":2312,"d":"2,312.00"}},{"$f":"Титульный!$D$10-3","v":2019},1881.8078124999997]
[{"$nulls":4},{"$f":"Титульный!$D$10-2","v":2020}]
[null,"1.","Подготовка и выдача сетевой организацией технических условий Заявителю, в том числе:",{"$f":"D30+D31","v":{"v":116030.75,"d":"116,030.75"}},{"$f":"E30+E31","v":{"v":18,"d":"18.00"}},{"$f":"F30+F31","v":{"v":5474.06,"d":"5,474.06"}},{"$f":"Титульный!$D$10-2","v":2020},{"$f":"IFERROR(D29/E29,\"Заполните все столбцы\")","v":6446.152777777777}]
[null," 1.1"," - до 15 кВт (включительно)",{"v":4486.38,"d":"4,486.38"},{"v":6,"d":"6.00"},{"v":68.5,"d":"68.50"},{"$f":"Титульный!$D$10-2","v":2020},{"$f":"IFERROR(D30/E30,\"Заполните все столбцы\")","v":747.73}]
[null," 1.2"," - свыше 16 кВт",{"v":111544.37,"d":"111,544.37"},{"v":12,"d":"12.00"},{"v":5405.56,"d":"5,405.56"},{"$f":"Титульный!$D$10-2","v":2020},9295.364166666666]
[null,"2.","Проверка сетевой организацией выполнения технических условий Заявителем",{"$f":"D33+D36","v":{"v":251730.08000000002,"d":"251,730.08"}},{"$f":"E33+E36","v":{"v":18,"d":"18.00"}},{"$f":"F33+F36","v":{"v":5474.0599999999995,"d":"5,474.06"}},{"$f":"Титульный!$D$10-2","v":2020},13985.004444444445]
[null,"2.1","Выдача сетевой организацией акта об осуществлении технологического присоединения Заявителям, указанным в абзаце восьмом пункта 24 Методических указаний по определению размера платы за технологическое присоединение к электрическим сетям",{"$f":"D34+D35","v":{"v":89928.42666666668,"d":"89,928.43"}},{"$f":"E34+E35","v":{"v":10,"d":"10.00"}},{"$f":"F34+F35","v":{"v":283.5,"d":"283.50"}},{"$f":"Титульный!$D$10-2","v":2020},8992.842666666667]
[null," 2.1.1"," - до 15 кВт (включительно)",{"v":9027.6,"d":"9,027.60"},{"v":6,"d":"6.00"},{"v":68.5,"d":"68.50"},{"$f":"Титульный!$D$10-2","v":2020},1504.6000000000001]
[null," 2.1.2"," - от 16 кВт до 150 кВт",{"$f":"242702.48/12*E35","v":{"v":80900.82666666668,"d":"80,900.83"}},{"v":4,"d":"4.00"},{"v":215,"d":"215.00"},{"$f":"Титульный!$D$10-2","v":2020},20225.20666666667]
[null,"2.2","Проверка сетевой организацией выполнения технических условий Заявителями, указанными в абзаце девятом пункта 24 Методических указаний по определению размера платы за технологическое присоединение к электрическим сетям",{"$f":"D37","v":{"v":161801.65333333335,"d":"161,801.65"}},{"$f":"E37","v":{"v":8,"d":"8.00"}},{"$f":"F37","v":{"v":5190.5599999999995,"d":"5,190.56"}},{"$f":"Титульный!$D$10-2","v":2020},20225.20666666667]
[null," 2.2.1"," - свыше 150 кВт",{"$f":"242702.48/12*E37","v":{"v":161801.65333333335,"d":"161,801.65"}},{"$f":"3+5","v":{"v":8,"d":"8.00"}},{"$f":"4616+574.56","v":{"v":5190.5599999999995,"d":"5,190.56"}},{"$f":"Титульный!$D$10-2","v":2020},20225.20666666667]

{"sheet":"Ставка 2. (ВЛ)","index":3,"n_rows":13,"n_cols":22,"rows_kept":13,"merged":[[1,2,3,21],[5,2,5,21]]}
[]
[null,null,"Расходы на строительство введенных в эксплуатацию объектов электросетевого хозяйства для целей технологического присоединения и для целей реализации иных мероприятий инвестиционной программы территориальной сетевой организации"]
[]
[]
[]
[null,null,"ДЛЯ НАСЕЛЕННЫХ ПУНКТОВ ВСЕХ ТЕРРИТОРИЙ"]
[]
[null,null,"N п/п","Технический код ставки","Обозначение ставки","Наименование ставки","Объект электросетевого хозяйства","Территория","Опоры","Опоры (за исключением)\nТехнический столбец","Изоляция","Материал провода","Сечение","Количество цепей","Напряжение","Год ввода объекта","Протяженность линий электропередачи, км","Присоединенная максимальная мощность, кВт (указывается только до 670кВт, если больше не указывается)","Общие расходы на строительство объекта, руб. \n(без НДС)","Расходы на строительство единицы ВЛ, руб./км","Наименование папки","Источник финансирования"]
[null,null,1,{"$f":"C$9+1","v":2},{"$f":"D$9+1","v":3},4,5,6,7,"Технический",{"$f":"I$9+1","v":8},{"$f":"K$9+1","v":9},10,11,12,13,14,15,16,17,18,19]
[null,null,"2.",{"$nulls":9},"Строительство воздушных линий "]
[null," X ",{"$f":"ROW($C11)-12","v":{"v":-1,"d":"-2.1"}},{"$f":"IF(OR($H11=\"\",$I11=\"\",$K11=\"\",$L11=\"\",$M11=\"\",$N11=\"\",$O11=\"\"),\"Заполните все столбцы\",LEFT($H11,2)&\".\"&\"2.\"&LEFT($I11,1)&\".\"&LEFT($K11,1)&\".\"&LEFT($L11,1)&\".\"&LEFT($M11,1)&\".\"&LEFT($N11,1)&\".\"&LEFT($J11,1))","v":"Заполните все столбцы"},{"$f":"IFERROR(\"С \"&(MID($D11,4,LEN($D11)))&\" \"&(RIGHT($H11,LEN($H11)-3))&\",\"&(RIGHT($O11,LEN($O11)-2)),\"Заполните все столбцы\")","v":"Заполните все столбцы"},{"$f":"IFERROR(LOWER(\"воздушные линии на \"&VLOOKUP($I11,'1.1Назв. объ. эл. сетевого хоз.'!$A$2:$B$24,2,0)&\" \"&VLOOKUP($K11,'1.1Назв. объ. эл. сетевого хоз.'!$A$2:$B$24,2,0)&\" \"&VLOOKUP($L11,'1.1Назв. объ. эл. сетевого хоз.'!$A$2:$B$24,2,0)&\" проводом \"&\"сечением \"&VLOOKUP($M11,'1.1Назв. объ. эл. сетевого хоз.'!$A$2:$B$24,2,0)&\" \"&VLOOKUP($N11,'1.1Назв. объ. эл. сетевого хоз.'!$A$2:$B$24,2,0)),\"Заполните все столбцы\")","v":"Заполните все столбцы"},"Название объекта",{"$nulls":12},{"$f":"IF(OR($S11=\"\",$Q11=\"\"),\"Заполните все столбцы\",IF(AND(IF(AND(S11<>0,Q11<>0),S11/Q11,0)>=1000000,IF(AND(S11<>0,Q11<>0),S11/Q11,0)<=20000000),IF(AND(S11<>0,Q11<>0),S11/Q11,0),\"Значение расходов вне возможного диапазона\"))","v":"Заполните все столбцы"}]
[null,"TAG",{"$nulls":4},"Добавить строки"]
[null,"TAG",{"$nulls":4},"Добавить строки"]

{"sheet":"Наименования ставок","index":4,"n_rows":17,"n_cols":45,"rows_kept":17,"hidden":true,"merged":[[1,2,1,8],[1,11,1,17],[1,19,1,23],[1,25,1,29],[1,31,1,34],[1,36,1,39],[1,41,1,44]]}
[]
[null,null,"2. воздушные линии",{"$nulls":8},"3. кабельные\n линии",{"$nulls":7}," 4. пункты секционирования (реклоузеры, распределительные пункты, переключательные пункты)",{"$nulls":5}," 5. трансформаторные подстанции (ТП), за исключением распределительных трансформаторных подстанций (РТП), с уровнем напряжения до 35 кВ",{"$nulls":5},"6. распределительные трансформаторные подстанции (РТП) с уровнем напряжения до 35 кВ",{"$nulls":4},"7. подстанции уровнем напряжения 35 кВ и выше",{"$nulls":4},"8. обеспечение средствами коммерческого учета электрической энергии (мощности)"]
["Ст",null,"территория","опоры","изоляция","материал","сечение","количество цепей","напряжение",null,null,"территория","способ прокладки","вид жилы","изоляция","сечение","количество кабелей","напряжение",null,"территория","техническое исполнение","номинальный ток","Количество ячеек","напряжение",null,"территория","количество трансформаторов","мощность трансформаторов","тип исполнения","напряжение",null,"территория","количество трансформаторов","мощность трансформаторов","напряжение",null,"территория","количество трансформаторов","мощность трансформаторов","напряжение",null,"территория","количество фаз","способ подключения","напряжение"]
[1,null,"Городское","деревянных","изолированым","медным","до 50 квадратных мм включительно","1. Одноцепные ","1. 0,4 кВ и ниже",null,null,"город","траншея","одножильный"," резиновая или пластмассовая","до 50 квадратных мм включительно",1,"0,4 кВ и ниже",null,"город","реклоузер","до 100 А","от 5 до 10 включительно","0,4 кВ и ниже",null,"город","один","до 25 кВА включительно","столбового/мачтового","6/0,4 кВ",null,"город","один","до 25 кВА включительно","6(10)/0,4 кВ",null,"город","один","до 6,3 МВА включительно","35/6(10) кВ",null,"город","однофазные","прямого включения","0,4 кВ и ниже"]
[2,null,"Не городское","металлических","неизолированным","стальным","от 50 до 100 квадратных мм включительно","2. Двухцепные","2. 1 - 20  кВ",null,null,"не город","блоки","многожильный","бумажная"," от 50 до 100 квадратных мм включительно",2,"1 - 10  кВ",null,"не город","линейные разъединители","от 100 до 250 А включительно","от 10 до 15 включительно","1 - 20  кВ",null,"не город","два"," от 25 до 100 кВА включительно","шкафного или киоскового ","10/0,4 кВ",null,"не город","два"," от 25 до 100 кВА включительно","20/0,4 кВ",null,"не город","два","от 6,3 МВА до 10 МВА включительно","35/0,4 кВ",null,"не город","трехфазные","полукосвенного включения","1 - 20  кВ"]
[3,null,null,"металлических, за исключением многогранных",null,"сталеалюминиевым","от 100 до 200 квадратных мм включительно",null,"3. 27,5 - 60 кВ",{"$nulls":3},"каналы",null,null,"от 100 до 200 квадратных мм включительно",3,"15 - 20 кВ",null,null,"выключатели нагрузки, устанавливаемые вне трансформаторных подстанций и распределительных и переключательных пунктов,","от 250 до 500 А включительно","свыше 15","35 кВ",{"$nulls":3},"от 100 до 250 кВА включительно"," блочного","20/0,4 кВ",{"$nulls":3},"от 100 до 250 кВА включительно",{"$nulls":4},"от 10 МВА до 16 МВА включительно","110/35 кВ",{"$nulls":3},"косвенного включения","35 кВ"]
[4,null,null,"металлических многогранных",null,"алюминиевым","от 200 до 500 квадратных мм включительно",null,"4. 110 кВ и выше",{"$nulls":3},"туннели и коллекторы",null,null,"от 200 до 250 квадратных мм включительно",4,"27,5 - 60 кВ",null,null,"распределительные пункты (РП), за исключением комплектных распределительных устройств наружной установки (КРН, КРУН),","от 500 до 1000 А включительно",null,"110 кВ и выше",{"$nulls":3},"от 250 до 400 кВА включительно",null,"6/10\n(10/6) кВ",{"$nulls":3},"от 250 до 400 кВА включительно",{"$nulls":4},"от 16 МВА до 25 МВА включительно","110/6(10) кВ",{"$nulls":4},"110 кВ и выше"]
[5,null,null,"железобетонных",null,null,"от 500 до 800 квадратных мм включительно",{"$nulls":5}," галереи и эстакады",null,null,"от 250 до 300 квадратных мм включительно","более 4","110 кВ и выше",null,null,"комплектные распределительные устройства наружной установки (КРН, КРУН) "," свыше 1000 А",{"$nulls":5},"от 400 до 1000 кВА включительно",null,"10/20\n(20/10) кВ",{"$nulls":3},"от 400 до 1000 кВА включительно",{"$nulls":4},"от 25 МВА до 32 МВА включительно","110/35/6(10) кВ"]
[6,{"$nulls":5},"свыше 800 квадратных мм",{"$nulls":5},"метод горизонтального наклонного бурения",null,null,"от 300 до 400 квадратных мм включительно",{"$nulls":4},"переключательные пункты",{"$nulls":6},"от 1000 кВА до 1250 кВА",null,"6/20\n(20/6) кВ",{"$nulls":3},"от 1000 кВА до 1250 кВА",{"$nulls":4},"от 32 МВА до 40 МВА включительно"]
[{"$nulls":15},"от 400 до 500 квадратных мм включительно",{"$nulls":11},"от 1250 кВА до 1600 кВА включительно",{"$nulls":5},"от 1250 кВА до 1600 кВА включительно",{"$nulls":4},"от 40 МВА до 63 МВА включительно"]
[null,null,"территория","опоры","изоляция","материал","сечение","количество цепей","напряжение",{"$nulls":6},"от 500 до 800 квадратных мм включительно",{"$nulls":11},"от 1600 кВА до 2000 кВА включительно",{"$nulls":5},"от 1600 кВА до 2000 кВА включительно",{"$nulls":4},"от 63 МВА до 80 МВА включительно"]
[null,null,"город","деревянные","изолированый","медный","до 50 квадратных мм включительно","одноцепные ","0,4 кВ и ниже",{"$nulls":6},"свыше 800 квадратных мм",{"$nulls":11}," от 2000 кВА до 2500 кВА включительно",{"$nulls":5}," от 2000 кВА до 2500 кВА включительно",{"$nulls":4},"от 80 МВА до 100 МВА включительно"]
[null,null,"не город","металлические"," неизолированный","стальной"," от 50 до 100 квадратных мм включительно","двухцепные","1 - 20  кВ",{"$nulls":18},"от 2500 кВА до 3150 кВА включительно",{"$nulls":5},"от 2500 кВА до 3150 кВА включительно",{"$nulls":4},"свыше 100 МВА"]
[{"$nulls":3},"металлические, за исключением многогранных",null,"сталеалюминиевый","от 100 до 200 квадратных мм включительно",null,"27,5 - 60 кВ",{"$nulls":18},"от 3150 кВА до 4000 кВА включительно",{"$nulls":5},"от 3150 кВА до 4000 кВА включительно"]
[{"$nulls":3},"металлические многогранные",null,"алюминиевый","от 200 до 500 квадратных мм включительно",null,"110 кВ и выше",{"$nulls":18}," свыше 4000 кВА",{"$nulls":5}," свыше 4000 кВА"]
[{"$nulls":3},"железобетонные",null,null,"от 500 до 800 квадратных мм включительно"]
[{"$nulls":6},"свыше 800 квадратных мм"]

{"sheet":"Ставка 3. (КЛ)","index":5,"n_rows":14,"n_cols":21,"rows_kept":14,"merged":[[1,2,3,20],[5,2,5,20]]}
[]
[null,null,"Расходы на строительство введенных в эксплуатацию объектов электросетевого хозяйства для целей технологического присоединения и для целей реализации иных мероприятий инвестиционной программы территориальной сетевой организации"]
[]
[]
[]
[null,null,"ДЛЯ НАСЕЛЕННЫХ ПУНКТОВ ВСЕХ ТЕРРИТОРИЙ"]
[]
[null,null,"N п/п","Технический код ставки","Обозначение ставки","Наименование ставки","Объект электросетевого хозяйства","Территория","Способ прокладки","Вид жилы","Изоляция","Сечение","Количество кабелей","Напряжение","Год ввода объекта","Протяженность линий электропередачи, км","Присоединенная максимальная мощность, кВт (указывается только до 670кВт, если больше не указывается)","Общие расходы на строительство объекта, руб. \n(без НДС)","Расходы на строительство единицы КЛ, руб./км","Наименование папки","Источник финансирования"]
[null,null,1,{"$f":"C$9+1","v":2},{"$f":"D$9+1","v":3},4,5,6,7,8,9,10,11,12,13,14,15,16,17,18,19]
[null,null,"3.",{"$nulls":8},"Строительство кабельных линий "]
[null," X ",{"$f":"ROW($C11)-12","v":{"v":-1,"d":"-3.1"}},{"$f":"IF(OR($H11=\"\",$I11=\"\",$J11=\"\",$K11=\"\",$L11=\"\",$M11=\"\",$N11=\"\"),\"Заполните все столбцы\",LEFT($H11,2)&\".\"&\"3.\"&LEFT($I11,1)&\".\"&LEFT($J11,1)&\".\"&LEFT($K11,1)&\".\"&LEFT($L11,1)&\".\"&LEFT($M11,1))","v":"Заполните все столбцы"},{"$f":"IFERROR(\"С \"&(MID($D11,4,LEN($D11)))&\" \"&(RIGHT($H11,LEN($H11)-3))&\",\"&(RIGHT($N11,LEN($N11)-2)),\"Заполните все столбцы\")","v":"Заполните все столбцы"},{"$f":"IFERROR(LOWER(\"кабельные линии\"&IF($I11=\"6) метод горизонтального наклонного бурения\",VLOOKUP($I11,'1.1Назв. объ. эл. сетевого хоз.'!$D$2:$E$33,2,0)&\" \"&VLOOKUP($J11,'1.1Назв. объ. эл. сетевого хоз.'!$D$2:$E$33,2,0)&\" c \"&VLOOKUP($K11,'1.1Назв. объ. эл. сетевого хоз.'!$D$2:$E$33,2,0)&\" изоляцией \"&\"сечением провода \"&VLOOKUP($L11,'1.1Назв. объ. эл. сетевого хоз.'!$D$2:$E$33,2,0)&\" \"&IF($M11=\"5) более четырех\",\"с количеством \"&IF($I11=\"6) метод горизонтального наклонного бурения\",VLOOKUP($M11,'1.1Назв. объ. эл. сетевого хоз.'!$D$2:$F$33,3,0),VLOOKUP($M11,'1.1Назв. объ. эл. сетевого хоз.'!$D$2:$E$33,2,0)),IF($I11=\"6) метод горизонтального наклонного бурения\",VLOOKUP($M11,'1.1Назв. объ. эл. сетевого хоз.'!$D$2:$F$33,3,0),VLOOKUP($M11,'1.1Назв. объ. эл. сетевого хоз.'!$D$2:$E$33,2,0))),VLOOKUP($I11,'1.1Назв. объ. эл. сетевого хоз.'!$D$2:$E$33,2,0)&\" \"&VLOOKUP($J11,'1.1Назв. объ. эл. сетевого хоз.'!$D$2:$E$33,2,0)&\" c \"&VLOOKUP($K11,'1.1Назв. объ. эл. сетевого хоз.'!$D$2:$E$33,2,0)&\" изоляцией \"&\"сечением провода \"&VLOOKUP($L11,'1.1Назв. объ. эл. сетевого хоз.'!$D$2:$E$33,2,0)&\" \"&IF($M11=\"5) более четырех\",\"с количеством \"&IF($I11=\"6) метод горизонтального наклонного бурения\",VLOOKUP($M11,'1.1Назв. объ. эл. сетевого хоз.'!$D$2:$F$33,3,0),VLOOKUP($M11,'1.1Назв. объ. эл. сетевого хоз.'!$D$2:$E$33,2,0)),IF($I11=\"6) метод горизонтального наклонного бурения\",VLOOKUP($M11,'1.1Назв. объ. эл. сетевого хоз.'!$D$2:$F$33,3,0),VLOOKUP($M11,'1.1Назв. объ. эл. сетевого хоз.'!$D$2:$E$33,2,0)))&\" \"&VLOOKUP($I11,'1.1Назв. объ. эл. сетевого хоз.'!$D$2:$F$33,3,0))),\"Заполните все столбцы\")","v":"Заполните все столбцы"},"Название объекта",{"$nulls":11},{"$f":"IF(OR($R11=\"\",$P11=\"\"),\"Заполните все столбцы\",IF(AND(IF(AND(R11<>0,P11<>0),R11/P11,0)>=1000000,IF(AND(R11<>0,P11<>0),R11/P11,0)<=50000000),IF(AND(R11<>0,P11<>0),R11/P11,0),\"Значение расходов вне возможного диапазона\"))","v":"Заполните все столбцы"}]
[null,"TAG",{"$nulls":4},"Добавить строки"]
[null," X ",{"$f":"ROW($C13)-12","v":{"v":1,"d":"3.1"}},{"$f":"IF(OR($H13=\"\",$I13=\"\",$J13=\"\",$K13=\"\",$L13=\"\",$M13=\"\",$N13=\"\"),\"Заполните все столбцы\",LEFT($H13,2)&\".\"&\"3.\"&LEFT($I13,1)&\".\"&LEFT($J13,1)&\".\"&LEFT($K13,1)&\".\"&LEFT($L13,1)&\".\"&LEFT($M13,1))","v":"II.3.1.1.1.1.1"},{"$f":"IFERROR(\"С \"&(MID($D13,4,LEN($D13)))&\" \"&(RIGHT($H13,LEN($H13)-3))&\",\"&(RIGHT($N13,LEN($N13)-2)),\"Заполните все столбцы\")","v":"С 3.1.1.1.1.1  Не город, 0,4 кВ и ниже"},{"$f":"IFERROR(LOWER(\"кабельные линии\"&IF($I13=\"6) метод горизонтального наклонного бурения\",VLOOKUP($I13,'1.1Назв. объ. эл. сетевого хоз.'!$D$2:$E$33,2,0)&\" \"&VLOOKUP($J13,'1.1Назв. объ. эл. сетевого хоз.'!$D$2:$E$33,2,0)&\" c \"&VLOOKUP($K13,'1.1Назв. объ. эл. сетевого хоз.'!$D$2:$E$33,2,0)&\" изоляцией \"&\"сечением провода \"&VLOOKUP($L13,'1.1Назв. объ. эл. сетевого хоз.'!$D$2:$E$33,2,0)&\" \"&IF($M13=\"5) более четырех\",\"с количеством \"&IF($I13=\"6) метод горизонтального наклонного бурения\",VLOOKUP($M13,'1.1Назв. объ. эл. сетевого хоз.'!$D$2:$F$33,3,0),VLOOKUP($M13,'1.1Назв. объ. эл. сетевого хоз.'!$D$2:$E$33,2,0)),IF($I13=\"6) метод горизонтального наклонного бурения\",VLOOKUP($M13,'1.1Назв. объ. эл. сетевого хоз.'!$D$2:$F$33,3,0),VLOOKUP($M13,'1.1Назв. объ. эл. сетевого хоз.'!$D$2:$E$33,2,0))),VLOOKUP($I13,'1.1Назв. объ. эл. сетевого хоз.'!$D$2:$E$33,2,0)&\" \"&VLOOKUP($J13,'1.1Назв. объ. эл. сетевого хоз.'!$D$2:$E$33,2,0)&\" c \"&VLOOKUP($K13,'1.1Назв. объ. эл. сетевого хоз.'!$D$2:$E$33,2,0)&\" изоляцией \"&\"сечением провода \"&VLOOKUP($L13,'1.1Назв. объ. эл. сетевого хоз.'!$D$2:$E$33,2,0)&\" \"&IF($M13=\"5) более четырех\",\"с количеством \"&IF($I13=\"6) метод горизонтального наклонного бурения\",VLOOKUP($M13,'1.1Назв. объ. эл. сетевого хоз.'!$D$2:$F$33,3,0),VLOOKUP($M13,'1.1Назв. объ. эл. сетевого хоз.'!$D$2:$E$33,2,0)),IF($I13=\"6) метод горизонтального наклонного бурения\",VLOOKUP($M13,'1.1Назв. объ. эл. сетевого хоз.'!$D$2:$F$33,3,0),VLOOKUP($M13,'1.1Назв. объ. эл. сетевого хоз.'!$D$2:$E$33,2,0)))&\" \"&VLOOKUP($I13,'1.1Назв. объ. эл. сетевого хоз.'!$D$2:$F$33,3,0))),\"Заполните все столбцы\")","v":"кабельные линии в траншеях одножильные c резиновой или пластмассовой изоляцией сечением провода до 50 квадратных мм включительно с одним кабелем в траншее"},"КЛ-0,4 кВ ф. \"Вышка РТС\" марки ВБбШвнг 4х4 мм2","II) Не город","1) траншея","1) одножильный","1) резиновая или пластмассовая","1) до 50 квадратных мм включительно","1) один","1) 0,4 кВ и ниже",2019,0.11,{"v":8,"d":"8.00"},{"v":954851.5,"d":"954,851.50"},{"$f":"IF(OR($R13=\"\",$P13=\"\"),\"Заполните все столбцы\",IF(AND(IF(AND(R13<>0,P13<>0),R13/P13,0)>=1000000,IF(AND(R13<>0,P13<>0),R13/P13,0)<=50000000),IF(AND(R13<>0,P13<>0),R13/P13,0),\"Значение расходов вне возможного диапазона\"))","v":{"v":8680468.181818182,"d":"8,680,468.18"}},"3.1.С3.2019","Технологическое присоединение"]
[null,"TAG",{"$nulls":4},"Добавить строки"]

{"sheet":"Ставка 4.1.-4.3.","index":6,"n_rows":13,"n_cols":19,"rows_kept":13,"merged":[[1,2,3,18],[5,2,5,18]]}
[]
[null,null,"Расходы на строительство введенных в эксплуатацию объектов электросетевого хозяйства для целей технологического присоединения и для целей реализации иных мероприятий инвестиционной программы территориальной сетевой организации"]
[]
[]
[]
[null,null,"ДЛЯ НАСЕЛЕННЫХ ПУНКТОВ ВСЕХ ТЕРРИТОРИЙ"]
[]
[null,null,"N п/п","Технический код ставки","Обозначение ставки","Наименование ставки","Объект электросетевого хозяйства","Территория","Техническое исполнение","Номинальный ток","Напряжение","Год ввода объекта","Количество пунктов секционирования, \nшт.","Общая трансформаторная мощность, кВт","Присоединенная максимальная мощность, кВт (указывается только до 670кВт, если больше не указывается)","Общие расходы на строительство объекта, руб. \n(без НДС)","Расходы на строительство единицы, руб./шт.","Наименование папки","Источник финансирования"]
[null,null,1,{"$f":"C$9+1","v":2},{"$f":"D$9+1","v":3},4,5,6,7,8,9,10,11,12,13,14,15,16,17]
[null,null,"4.",{"$nulls":7},"Реклоузеры, линейные разъединители, выключатели нагрузки"]
[null," X ",{"$f":"ROW($C11)-12","v":{"v":-1,"d":"-4.1"}},{"$f":"IF(OR($H11=\"\",$I11=\"\",$J11=\"\",$K11=\"\"),\"Заполните все столбцы\",LEFT($H11,2)&\".\"&\"4.\"&LEFT($I11,1)&\".\"&LEFT($J11,1))","v":"Заполните все столбцы"},{"$f":"IFERROR(\"С \"&(MID($D11,4,LEN($D11)))&\" \"&(RIGHT($H11,LEN($H11)-3))&\",\"&(RIGHT($K11,LEN($K11)-2)),\"Заполните все столбцы\")","v":"Заполните все столбцы"},{"$f":"IFERROR(VLOOKUP($I11,'1.1Назв. объ. эл. сетевого хоз.'!$H$2:$J$33,2,0)&\" номинальным током \"&VLOOKUP($J11,'1.1Назв. объ. эл. сетевого хоз.'!$H$2:$J$33,2,0),\"Заполните все столбцы\")","v":"Заполните все столбцы"},"Название объекта",{"$nulls":9},{"$f":"IF(AND(P11<>0,N11<>0),P11/N11,0)","v":{"v":0,"d":"0.00"}}]
[null,"TAG",{"$nulls":4},"Добавить строки"]
[null,"TAG",{"$nulls":4},"Добавить строки"]

{"sheet":"Ставка 4.4.-4.6.","index":7,"n_rows":13,"n_cols":18,"rows_kept":13,"merged":[[1,2,3,17],[5,2,5,17]]}
[]
[null,null,"Расходы на строительство введенных в эксплуатацию объектов электросетевого хозяйства для целей технологического присоединения и для целей реализации иных мероприятий инвестиционной программы территориальной сетевой организации"]
[]
[]
[]
[null,null,"ДЛЯ НАСЕЛЕННЫХ ПУНКТОВ ВСЕХ ТЕРРИТОРИЙ"]
[]
[null,null,"N п/п","Технический код ставки","Обозначение ставки","Наименование ставки","Объект электросетевого хозяйства","Территория","Техническое исполнение","Номинальный ток","Количество ячеек","Напряжение","Год ввода объекта","Общая трансформаторная мощность, кВт","Присоединенная максимальная мощность, кВт (указывается только до 670кВт, если больше не указывается)","Расходы на строительство объекта, руб. \n(без НДС)","Наименование папки","Источник финансирования"]
[null,null,1,{"$f":"C$9+1","v":2},{"$f":"D$9+1","v":3},4,5,6,7,8,9,10,11,12,13,14,15,16]
[null,null,"4.",{"$nulls":3},"Распределительные пункты (РП), за исключением комплектных распределительных устройств наружной установки (КРН, КРУН),  комплектные распределительные устройства наружной установки (КРН, КРУН) , переключательные пункты"]
[null," X ",{"$f":"ROW($C11)-12","v":{"v":-1,"d":"-4.1"}},{"$f":"IF(OR($H11=\"\",$I11=\"\",$J11=\"\",$K11=\"\",$L11=\"\"),\"Заполните все столбцы\",LEFT($H11,2)&\".\"&\"4.\"&LEFT($I11,1)&\".\"&LEFT($J11,1)&\".\"&LEFT($K11,1))","v":"Заполните все столбцы"},{"$f":"IFERROR(\"С \"&(MID($D11,4,LEN($D11)))&\" \"&(RIGHT($H11,LEN($H11)-3))&\",\"&(RIGHT($L11,LEN($L11)-2)),\"Заполните все столбцы\")","v":"Заполните все столбцы"},{"$f":"IFERROR(VLOOKUP($I11,'1.1Назв. объ. эл. сетевого хоз.'!$H$2:$J$33,2,0)&\" номинальным током \"&VLOOKUP($J11,'1.1Назв. объ. эл. сетевого хоз.'!$H$2:$J$33,2,0)&\" с количеством ячеек \"&VLOOKUP($K11,'1.1Назв. объ. эл. сетевого хоз.'!$H$2:$J$33,2,0),\"Заполните все столбцы\")","v":"Заполните все столбцы"},"Название объекта"]
[null,"TAG",{"$nulls":4},"Добавить строки"]
[null,"TAG",{"$nulls":4},"Добавить строки"]

{"sheet":"Ставка 5. (ТП без РТП)","index":8,"n_rows":13,"n_cols":18,"rows_kept":13,"merged":[[1,2,3,17],[5,2,5,17]]}
[]
[null,null,"Расходы на строительство введенных в эксплуатацию объектов электросетевого хозяйства для целей технологического присоединения и для целей реализации иных мероприятий инвестиционной программы территориальной сетевой организации"]
[]
[]
[]
[null,null,"ДЛЯ НАСЕЛЕННЫХ ПУНКТОВ ВСЕХ ТЕРРИТОРИЙ"]
[]
[null,null,"N п/п","Технический код ставки","Обозначение ставки","Наименование ставки","Объект электросетевого хозяйства","Территория","Количество трансформаторов","Мощность трансформаторов","Тип исполнения","Напряжение","Год ввода объекта","Общая трансформаторная мощность, кВт","Присоединенная максимальная мощность, кВт (указывается только до 670кВт, если больше не указывается)","Расходы на строительство объекта, руб. \n(без НДС)","Наименование папки","Источник финансирования"]
[null,null,1,{"$f":"C$9+1","v":2},{"$f":"D$9+1","v":3},4,5,6,7,8,9,10,11,12,13,14,15,16]
[null,null,"5.",{"$nulls":3},"Трансформаторные подстанции (ТП), за исключением распределительных трансформаторных подстанций (РТП), с уровнем напряжения до 35 кВ"]
[null," X ",{"$f":"ROW($C11)-12","v":{"v":-1,"d":"-5.1"}},{"$f":"IF(OR($H11=\"\",$I11=\"\",$J11=\"\",$K11=\"\",$L11=\"\"),\"Заполните все столбцы\",LEFT($H11,2)&\".\"&\"5.\"&LEFT($I11,1)&\".\"&LEFT($J11,2)&\".\"&LEFT($K11,1))","v":"Заполните все столбцы"},{"$f":"IFERROR(\"С \"&(MID($D11,4,LEN($D11)))&\" \"&(RIGHT($H11,LEN($H11)-3))&\",\"&(RIGHT($L11,LEN($L11)-2)),\"Заполните все столбцы\")","v":"Заполните все столбцы"},{"$f":"IFERROR(VLOOKUP($I11,'1.1Назв. объ. эл. сетевого хоз.'!$K$2:$L$33,2,0)&\" \"&VLOOKUP($J11,'1.1Назв. объ. эл. сетевого хоз.'!$K$2:$L$24,2,0)&\" \"&VLOOKUP($K11,'1.1Назв. объ. эл. сетевого хоз.'!$K$2:$L$24,2,0),\"Заполните все столбцы\")","v":"Заполните все столбцы"},"Название объекта"]
[null,"TAG",{"$nulls":4},"Добавить строки"]
[null,"TAG",{"$nulls":4},"Добавить строки"]

{"sheet":"Ставка 6. (РТП)","index":9,"n_rows":13,"n_cols":17,"rows_kept":13,"merged":[[1,2,3,16],[5,2,5,16]]}
[]
[null,null,"Расходы на строительство введенных в эксплуатацию объектов электросетевого хозяйства для целей технологического присоединения и для целей реализации иных мероприятий инвестиционной программы территориальной сетевой организации"]
[]
[]
[]
[null,null,"ДЛЯ НАСЕЛЕННЫХ ПУНКТОВ ВСЕХ ТЕРРИТОРИЙ"]
[]
[null,null,"N п/п","Технический код ставки","Обозначение ставки","Наименование ставки","Объект электросетевого хозяйства","Территория","Количество трансформаторов","Мощность трансформаторов","Напряжение","Год ввода объекта","Общая трансформаторная мощность, кВт","Присоединенная максимальная мощность, кВт (указывается только до 670кВт, если больше не указывается)","Расходы на строительство объекта, руб. \n(без НДС)","Наименование папки","Источник финансирования"]
[null,null,1,{"$f":"C$9+1","v":2},{"$f":"D$9+1","v":3},4,5,6,7,8,9,10,11,12,13,14,15]
[null,null,"6.",{"$nulls":3},"Распределительные трансформаторные подстанции (РТП) с уровнем напряжения до 35 кВ"]
[null," X ",{"$f":"ROW($C11)-12","v":{"v":-1,"d":"-6.1"}},{"$f":"IF(OR($H11=\"\",$I11=\"\",$J11=\"\",$K11=\"\"),\"Заполните все столбцы\",LEFT($H11,2)&\".\"&\"6.\"&LEFT($I11,1)&\".\"&LEFT($J11,2))","v":"Заполните все столбцы"},{"$f":"IFERROR(\"С \"&(MID($D11,4,LEN($D11)))&\" \"&(RIGHT($H11,LEN($H11)-3))&\",\"&(RIGHT($K11,LEN($K11)-2)),\"Заполните все столбцы\")","v":"Заполните все столбцы"},{"$f":"IFERROR(VLOOKUP($I11,'1.1Назв. объ. эл. сетевого хоз.'!$N$2:$O$33,2,0)&\" мощностью\"&VLOOKUP($J11,'1.1Назв. объ. эл. сетевого хоз.'!$N$2:$O$24,2,0),\"Заполните все столбцы\")","v":"Заполните все столбцы"},"Название объекта"]
[null,"TAG",{"$nulls":4},"Добавить строки"]
[null,"TAG",{"$nulls":4},"Добавить строки"]

{"sheet":"Ставка 7. (ТП>35)","index":10,"n_rows":13,"n_cols":17,"rows_kept":13,"merged":[[1,2,3,16],[5,2,5,16]]}
[]
[null,null,"Расходы на строительство введенных в эксплуатацию объектов электросетевого хозяйства для целей технологического присоединения и для целей реализации иных мероприятий инвестиционной программы территориальной сетевой организации"]
[]
[]
[]
[null,null,"ДЛЯ НАСЕЛЕННЫХ ПУНКТОВ ВСЕХ ТЕРРИТОРИЙ"]
[]
[null,null,"N п/п","Технический код ставки","Обозначение ставки","Наименование ставки","Объект электросетевого хозяйства","Территория","Количество трансформаторов","Мощность трансформаторов","Напряжение","Год ввода объекта","Общая трансформаторная мощность, кВт","Присоединенная максимальная мощность, кВт (указывается только до 670кВт, если больше не указывается)","Расходы на строительство объекта, руб. \n(без НДС)","Наименование папки","Источник финансирования"]
[null,null,1,{"$f":"C$9+1","v":2},{"$f":"D$9+1","v":3},4,5,6,7,8,9,10,11,12,13,14,15]
[null,null,"7.",{"$nulls":5},"Подстанции уровнем напряжения 35 кВ и выше"]
[null," X ",{"$f":"ROW($C11)-12","v":{"v":-1,"d":"-7.1"}},{"$f":"IF(OR($H11=\"\",$I11=\"\",$J11=\"\",$K11=\"\"),\"Заполните все столбцы\",LEFT($H11,2)&\".\"&\"7.\"&LEFT($I11,1)&\".\"&LEFT($J11,2))","v":"Заполните все столбцы"},{"$f":"IFERROR(\"С \"&(MID($D11,4,LEN($D11)))&\" \"&(RIGHT($H11,LEN($H11)-3))&\",\"&(RIGHT($K11,LEN($K11)-2)),\"Заполните все столбцы\")","v":"Заполните все столбцы"},{"$f":"IFERROR(VLOOKUP($I11,'1.1Назв. объ. эл. сетевого хоз.'!$Q$2:$R$33,2,0)&\" мощностью \"&VLOOKUP($J11,'1.1Назв. объ. эл. сетевого хоз.'!$Q$2:$R$33,2,0),\"Заполните все столбцы\")","v":"Заполните все столбцы"},"Название объекта"]
[null,"TAG",{"$nulls":4},"Добавить строки"]
[null,"TAG",{"$nulls":4},"Добавить строки"]

{"sheet":"Ставка 8. (ПУ)","index":11,"n_rows":13,"n_cols":18,"rows_kept":13,"merged":[[1,2,3,17],[5,2,5,17]]}
[]
[null,null,"Расходы на строительство введенных в эксплуатацию объектов электросетевого хозяйства для целей технологического присоединения и для целей реализации иных мероприятий инвестиционной программы территориальной сетевой организации"]
[]
[]
[]
[null,null,"ДЛЯ НАСЕЛЕННЫХ ПУНКТОВ ВСЕХ ТЕРРИТОРИЙ"]
[]
[null,null,"N п/п","Технический код ставки","Обозначение ставки","Наименование ставки","Объект электросетевого хозяйства","Территория","Количество фаз","Способ подключения","Напряжение","Год ввода объекта","Количество точек учета, шт.","Присоединенная максимальная мощность, кВт (указывается только до 670кВт, если больше не указывается)","Общие расходы на обеспечение средствами коммерческого учета электрической энергии (мощности), руб. \n(без НДС)","Расходы на обеспечение средствами коммерческого учета электрической энергии (мощности), руб./шт.","Наименование папки","Источник финансирования"]
[null,null,1,{"$f":"C$9+1","v":2},{"$f":"D$9+1","v":3},4,5,6,7,8,9,10,11,12,13,14,15,16]
[null,null,"8.",{"$nulls":3},"Обеспечение средствами коммерческого учета электрической энергии (мощности)"]
[null," X ",{"$f":"ROW($C11)-12","v":{"v":-1,"d":"-8.1"}},{"$f":"IF(OR($H11=\"\",$I11=\"\",$J11=\"\",$K11=\"\"),\"Заполните все столбцы\",LEFT($H11,2)&\".\"&\"8.\"&LEFT($I11,1)&\".\"&LEFT($J11,1))","v":"Заполните все столбцы"},{"$f":"IFERROR(\"С \"&(MID($D11,4,LEN($D11)))&\" \"&(RIGHT($H11,LEN($H11)-3))&\",\"&(RIGHT($K11,LEN($K11)-2)),\"Заполните все столбцы\")","v":"Заполните все столбцы"},{"$f":"IFERROR(\"средства коммерческого учета электрической энергии (мощности) \"&VLOOKUP($I11,'1.1Назв. объ. эл. сетевого хоз.'!$T$2:$U$33,2,0)&\" \"&VLOOKUP($J11,'1.1Назв. объ. эл. сетевого хоз.'!$T$2:$U$33,2,0),\"Заполните все столбцы\")","v":"Заполните все столбцы"},"Название объекта и(или) адрес",{"$nulls":8},{"$f":"IF(AND(O11<>0,M11<>0),O11/M11,0)","v":{"v":0,"d":"0.00"}},null,"Инвестиционная программа"]
[null,"TAG",{"$nulls":4},"Добавить строки"]
[null,"TAG",{"$nulls":4},"Добавить строки"]

{"sheet":"Названия ТСО+Ист. фин. тех.лист","index":12,"n_rows":49,"n_cols":2,"rows_kept":49,"hidden":true}
["Наименование сетевой организации, к которой непосредственно присоединен потребитель","Источник финансирования"]
["Филиал ОАО \"РЖД\" Трансэнерго Свердловская дирекция по энергообеспечению (по сетям Ишимской, Егоршинской, Серовской, Тюменской дистанций электроснабжения)","Инвестиционная программа"]
["АО  \"Сибирско-Уральская энергетическая компания\"","Технологическое присоединение"]
["Филиал \"Уральский\" АО \"Оборонэнерго\""]
["ООО \"ДСК-Энерго\""]
["ООО \"РемЭнергоСтройСервис\""]
["ООО \"Тобольскпромэнергосеть\""]
["ООО \"Транзит-Электро-Тюмень\""]
["ООО \"Тюменская электросетевая компания\" "]
["ООО  \"Элтранс\"   "]
["ООО \"Агентство Интеллект-Сервис\" "]
["ООО \"Альтера\" "]
["ООО Сетевая компания \"Восток\" "]
["ООО \"Дорстрой\""]
["ООО \"Региональная энергетическая компания\""]
["АО \"Россети Тюмень\""]
["ООО \"ТюменьСеть\""]
["ООО \"Элеконт\""]
["АО \"Городские электрические сети\" г.Нижневартовск"]
["АО \"Варьеганэнергонефть\""]
["ООО \"МегионЭнергоНефть\""]
["ООО \"Сургутские городские электрические сети\""]
["АО \"Югорская территориальная энергетическая компания - Региональные сети\""]
["ООО \"ЭЛЕК\""]
["АО \"Югорская региональная электросетевая компания\" "]
["АО \"Аэропорт Сургут\" "]
["Филиал ОАО \"РЖД\" Трансэнерго Свердловская дирекция по энергообеспечению (по сетям Сургутской дистанции электроснабжения)"]
["ООО \"Газпром трансгаз Сургут\""]
["ПАО \"Сургутнефтегаз\""]
["АО «ННК - Нижневартовское нефтегазодобывающее предприятие» (АО «ННК - ННП»)"]
["МУП \"Сургутские районные электрические сети\" муниципального образования Сургутский район"]
["АО \"Черногорэнерго\""]
["ООО \"Луч-Электро\""]
["ООО \"РН-Юганскнефтегаз\""]
["ООО \"Газпром энерго\" "]
["ООО \"Энергонефть Томск\""]
["ООО \"Газпромнефть-Хантос\""]
["ООО \"Ханты-Мансийские городские электрические сети\""]
["АО \"Вынгапуровский тепловодоканал\""]
["АО \"Уренгойгорэлектросеть\""]
["АО \"Ямальская железнодорожная компания\" "]
["ООО \"Ноябрьскэнергонефть\" "]
["АО \"Энерго-Газ-Ноябрьск\""]
["АО \"НордЭнерджиСистемс\""]
["МУП муниципального округа Надымский район Ямало-Ненецкого автономного округа \"Надымские городские электрические сети\""]
["ООО \"Газпром энерго\" (Уренгойский филиал)"]
["ООО \"СеверСетьРазвитие\" "]
["АО \"Распределительная сетевая компания Ямала\""]
["АО \"Губкинские городские электрические сети\""]

{"sheet":"Teh_Sheet","index":13,"n_rows":15,"n_cols":46,"rows_kept":15,"hidden":true,"merged":[[1,2,1,8],[1,12,1,18],[1,20,1,24],[1,26,1,30],[1,32,1,35],[1,37,1,40],[1,42,1,45]]}
[]
[null,null,"2. воздушные линии",{"$nulls":9},"3. кабельные\n линии",{"$nulls":7}," 4. пункты секционирования (реклоузеры, распределительные пункты, переключательные пункты)",{"$nulls":5}," 5. трансформаторные подстанции (ТП), за исключением распределительных трансформаторных подстанций (РТП), с уровнем напряжения до 35 кВ",{"$nulls":5},"6. распределительные трансформаторные подстанции (РТП) с уровнем напряжения до 35 кВ",{"$nulls":4},"7. подстанции уровнем напряжения 35 кВ и выше",{"$nulls":4},"8. обеспечение средствами коммерческого учета электрической энергии (мощности)"]
["Ст",null,"территория","опоры","изоляция","материал","сечение","количество цепей","напряжение","напряжение 2)","напряжение 2.)",null,"территория","способ прокладки","вид жилы","изоляция","сечение","количество кабелей","напряжение",null,"территория","техническое исполнение","номинальный ток","Количество ячеек","напряжение",null,"Территория","Количество трансформаторов","Мощность трансформаторов","Тип исполнения","Напряжение",null,"Территория","Количество трансформаторов","Мощность трансформаторов","Напряжение",null,"территория","количество трансформаторов","Мощность трансформаторов","Напряжение",null,"территория","Количество фаз","Способ подключения","Напряжение"]
["1)",null,"I ) Город","1) Деревянные","1) Изолированый","1) Медный","1) до 50 квадратных мм включительно","1) Одноцепные ","1) 0,4 кВ и ниже","1) 0,4 кВ и ниже","3) 27,5 - 60 кВ",null,"I ) Город","1) траншея","1) одножильный","1) резиновая или пластмассовая","1) до 50 квадратных мм включительно","1) один","1) 0,4 кВ и ниже",null,"I ) Город","1) реклоузер","1) до 100 А","1) до 5 включительно","1) 0,4 кВ и ниже",null,"I ) Город","1) один","1.) до 25 кВА включительно","1) столбового/мачтового","1) 6/0,4 кВ",null,"I ) Город","1) один","1.) до 25 кВА включительно","1) 6(10)/0,4 кВ",null,"I ) Город","1) один","1.) до 6,3 МВА включительно","1) 35/6(10) кВ",null,"I ) Город","1) однофазные","1) прямого включения","1) 0,4 кВ и ниже"]
["2)",null,"II) Не город","2) Металлические","2) Неизолированный","2) Стальной","2) от 50 до 100 квадратных мм включительно","2) Двухцепные","2) 1 - 20  кВ","2) 1 - 20  кВ","4) 110 кВ и выше",null,"II) Не город","2) блоки","2) многожильный","2) бумажная","2)  от 50 до 100 квадратных мм включительно","2) два","2) 1 - 10  кВ",null,"II) Не город","2) линейные разъединители","2) от 100 до 250 А включительно","2) от 5 до 10 включительно","2) 1 - 20  кВ",null,"II) Не город","2) два","2.) от 25 до 100 кВА включительно","2) шкафного или киоскового ","2) 10/0,4 кВ",null,"II) Не город","1) два","2.) от 25 до 100 кВА включительно","2) 20/0,4 кВ",null,"II) Не город","2) два","2.) от 6,3 МВА до 10 МВА включительно","2) 35/0,4 кВ",null,"II) Не город","2) трехфазные","2) полукосвенного включения","2) 1 - 20  кВ"]
["3)",null,null,"2.1) Металлические, за исключением многогранных",null,"3) Сталеалюминиевый","3) от 100 до 200 квадратных мм включительно",null,"3) 27,5 - 60 кВ",{"$nulls":4},"3) каналы",null,null,"3) от 100 до 200 квадратных мм включительно","3) три","3) 15 - 20 кВ",null,null,"3) выключатели нагрузки","3) от 250 до 500 А включительно","3) от 10 до 15 включительно","3) 35 кВ",{"$nulls":3},"3.) от 100 до 250 кВА включительно","3) блочного","3) 20/0,4 кВ",{"$nulls":3},"3.) от 100 до 250 кВА включительно",{"$nulls":4},"3.) от 10 МВА до 16 МВА включительно","3) 110/35 кВ",{"$nulls":3},"3) косвенного включения","3) 35 кВ"]
["4)",null,null,"2.2) Металлические многогранные",null,"4) Алюминиевый","4) от 200 до 500 квадратных мм включительно",null,"4) 110 кВ и выше",{"$nulls":4},"4) туннели и коллекторы",null,null,"4) от 200 до 250 квадратных мм включительно","4) четыре","4) 27,5 - 60 кВ",null,null,"4) распределительные пункты, за исключением КРН, КРУН","4) от 500 до 1000 А включительно","4) свыше 15","4) 110 кВ и выше",{"$nulls":3},"4.) от 250 до 400 кВА включительно",null,"4) 6/10\n(10/6) кВ",{"$nulls":3},"4.) от 250 до 400 кВА включительно",{"$nulls":4},"4.) от 16 МВА до 25 МВА включительно","4) 110/6(10) кВ",{"$nulls":4},"4) 110 кВ и выше"]
["5)",null,null,"3) Железобетонные",null,null,"5) от 500 до 800 квадратных мм включительно",{"$nulls":6},"5) галереи и эстакады",null,null,"5) от 250 до 300 квадратных мм включительно","5) более четырех","5) 110 кВ и выше",null,null,"5) КРН, КРУН","5) свыше 1000 А",{"$nulls":5},"5.) от 400 до 1000 кВА включительно",null,"5) 10/20\n(20/10) кВ",{"$nulls":3},"5.) от 400 до 1000 кВА включительно",{"$nulls":4},"5.) от 25 МВА до 32 МВА включительно","5) 110/35/6(10) кВ"]
["6)",{"$nulls":5},"6) свыше 800 квадратных мм",{"$nulls":6},"6) метод горизонтального наклонного бурения",null,null,"6) от 300 до 400 квадратных мм включительно",{"$nulls":4},"6) переключательные пункты",{"$nulls":6},"6.) от 1000 кВА до 1250 кВА",null,"6) 6/20\n(20/6) кВ",{"$nulls":3},"6.) от 1000 кВА до 1250 кВА",{"$nulls":4},"6.) от 32 МВА до 40 МВА включительно"]
["7)",{"$nulls":15},"7) от 400 до 500 квадратных мм включительно",{"$nulls":11},"7.) от 1250 кВА до 1600 кВА включительно",{"$nulls":5},"7.) от 1250 кВА до 1600 кВА включительно",{"$nulls":4},"7.) от 40 МВА до 63 МВА включительно"]
["8)",{"$nulls":15},"8) от 500 до 800 квадратных мм включительно",{"$nulls":11},"8.) от 1600 кВА до 2000 кВА включительно",{"$nulls":5},"8.) от 1600 кВА до 2000 кВА включительно",{"$nulls":4},"8.) от 63 МВА до 80 МВА включительно"]
["9)",{"$nulls":15},"9) свыше 800 квадратных мм",{"$nulls":11},"9.) от 2000 кВА до 2500 кВА включительно",{"$nulls":5},"9.) от 2000 кВА до 2500 кВА включительно",{"$nulls":4},"9.) от 80 МВА до 100 МВА включительно"]
["10)",{"$nulls":27},"10) от 2500 кВА до 3150 кВА включительно",{"$nulls":5},"10) от 2500 кВА до 3150 кВА включительно",{"$nulls":4},"10) свыше 100 МВА"]
["11)",{"$nulls":27},"11) от 3150 кВА до 4000 кВА включительно",{"$nulls":5},"11) свыше 3150 кВА"]
["12)",{"$nulls":27},"12) свыше 4000 кВА"]

{"sheet":"1.1Назв. объ. эл. сетевого хоз.","index":14,"n_rows":30,"n_cols":21,"rows_kept":30,"hidden":true,"merged":[[0,0,0,1],[0,3,0,5],[0,7,0,8],[0,10,0,11],[0,13,0,14],[0,16,0,17],[0,19,0,20]]}
["2. ВЛ",null,null,"3. КЛ",{"$nulls":3},"4. Реклоузеры, линейные разъединители, выключатели нагрузки + распределительные пункты (РП), за исключением комплектных распределительных устройств наружной установки (КРН, КРУН),  комплектные распределительные устройства наружной установки (КРН, КРУН) , переключательные пункты",null,null," 5. трансформаторные подстанции (ТП), за исключением распределительных трансформаторных подстанций (РТП), с уровнем напряжения до 35 кВ",null,null,"6. распределительные трансформаторные подстанции (РТП) с уровнем напряжения до 35 кВ",null,null,"7. подстанции уровнем напряжения 35 кВ и выше",null,null,"8. обеспечение средствами коммерческого учета электрической энергии (мощности)"]
["1) Деревянные","деревянных опорах",null,"1) траншея"," в траншеях","в траншее",null,"1) реклоузер","реклоузеры",null,"1) один","однотрансформаторные подстанции (за исключением РТП)",null,"1) один","распределительные однотрансформаторные подстанции",null,"1.) до 6,3 МВА включительно","до 6,3 МВА включительно",null,"1) однофазные","однофазные"]
["2) Металлические","металлических опорах",null,"2) блоки"," в блоках","в блоке",null,"2) линейные разъединители","линейные разъединители",null,"2) два","двухтрансформаторные и более подстанции (за исключением РТП)",null,"2) два","распределительные двухтрансформаторные подстанции",null,"2.) от 6,3 МВА до 10 МВА включительно","от 6,3 МВА до 10 МВА включительно",null,"2) трехфазные","трехфазные"]
["2.1) Металлические, за исключением многогранных","металлических опорах, за исключением многогранных",null,"3) каналы"," в каналах","в канале",null,"3) выключатели нагрузки","выключатели нагрузки, устанавливаемые вне трансформаторных подстанций и распределительных и переключательных пунктов,",null,"1.) до 25 кВА включительно","мощностью до 25 кВА включительно",null,"1.) до 25 кВА включительно","до 25 кВА включительно",null,"3.) от 10 МВА до 16 МВА включительно","от 10 МВА до 16 МВА включительно",null,"1) прямого включения","прямого включения"]
["2.2) Металлические многогранные","многогранных металлических опорах",null,"4) туннели и коллекторы"," в туннелях и коллекторах","в туннеле или коллекторе",null,"4) распределительные пункты, за исключением КРН, КРУН","распределительные пункты (РП), за исключением комплектных распределительных устройств наружной установки (КРН, КРУН),",null,"2.) от 25 до 100 кВА включительно","мощностью от 25 до 100 кВА включительно",null,"2.) от 25 до 100 кВА включительно"," от 25 до 100 кВА включительно",null,"4.) от 16 МВА до 25 МВА включительно","от 16 МВА до 25 МВА включительно",null,"2) полукосвенного включения","полукосвенного включения"]
["3) Железобетонные","железобетонных опорах",null,"5) галереи и эстакады"," в галереях и эстакадах","в галерее или на эстакаде",null,"5) КРН, КРУН","комплектные распределительные устройства наружной установки (КРН, КРУН),",null,"3.) от 100 до 250 кВА включительно","мощностью от 100 до 250 кВА включительно",null,"3.) от 100 до 250 кВА включительно","от 100 до 250 кВА включительно",null,"5.) от 25 МВА до 32 МВА включительно","от 25 МВА до 32 МВА включительно",null,"3) косвенного включения","косвенного включения"]
["1) Изолированый","изолированым",null,"6) метод горизонтального наклонного бурения",", прокладываемые методом горизонтального наклонного бурения",null,null,"6) переключательные пункты","переключательные пункты",null,"4.) от 250 до 400 кВА включительно","мощностью от 250 до 400 кВА включительно",null,"4.) от 250 до 400 кВА включительно","от 250 до 400 кВА включительно",null,"6.) от 32 МВА до 40 МВА включительно","от 32 МВА до 40 МВА включительно"]
["2) Неизолированный","неизолированным",null,"1) одножильный","одножильные",null,null,"1) до 100 А","до 100 А включительно",null,"5.) от 400 до 1000 кВА включительно","мощностью от 400 до 1000 кВА включительно",null,"5.) от 400 до 1000 кВА включительно","от 400 до 1000 кВА включительно",null,"7.) от 40 МВА до 63 МВА включительно","от 40 МВА до 63 МВА включительно"]
["1) Медный","медным",null,"2) многожильный","многожильные",null,null,"2) от 100 до 250 А включительно","от 100 до 250 А включительно",null,"6.) от 1000 кВА до 1250 кВА","мощностью от 1000 кВА до 1250 кВА",null,"6.) от 1000 кВА до 1250 кВА","от 1000 кВА до 1250 кВА",null,"8.) от 63 МВА до 80 МВА включительно","от 63 МВА до 80 МВА включительно"]
["2) Стальной","стальным",null,"1) резиновая или пластмассовая","резиновой или пластмассовой",null,null,"3) от 250 до 500 А включительно","от 250 до 500 А включительно",null,"7.) от 1250 кВА до 1600 кВА включительно","мощностью от 1250 кВА до 1600 кВА включительно",null,"7.) от 1250 кВА до 1600 кВА включительно","от 1250 кВА до 1600 кВА включительно",null,"9.) от 80 МВА до 100 МВА включительно","от 80 МВА до 100 МВА включительно"]
["3) Сталеалюминиевый","сталеалюминиевым",null,"2) бумажная","бумажной",null,null,"4) от 500 до 1000 А включительно","от 500 до 1000 А включительно",null,"8.) от 1600 кВА до 2000 кВА включительно","мощностью от 1600 кВА до 2000 кВА включительно",null,"8.) от 1600 кВА до 2000 кВА включительно","от 1600 кВА до 2000 кВА включительно",null,"10) свыше 100 МВА"," свыше 100 МВА"]
["4) Алюминиевый","алюминиевым",null,"1) до 50 квадратных мм включительно","до 50 квадратных мм включительно",null,null,"5) свыше 1000 А","свыше 1000 А",null,"9.) от 2000 кВА до 2500 кВА включительно","мощностью от 2000 кВА до 2500 кВА включительно",null,"9.) от 2000 кВА до 2500 кВА включительно"," от 2000 кВА до 2500 кВА включительно",null,"1) 35/6(10) кВ","35/6(10) кВ"]
["1) до 50 квадратных мм включительно","до 50 квадратных мм включительно",null,"2)  от 50 до 100 квадратных мм включительно"," от 50 до 100 квадратных мм включительно",null,null,"1) до 5 включительно","до 5 включительно",null,"10) от 2500 кВА до 3150 кВА включительно","мощностью  от 2500 кВА до 3150 кВА включительно",null,"10) от 2500 кВА до 3150 кВА включительно","от 2500 кВА до 3150 кВА включительно",null,"2) 35/0,4 кВ","35/0,4 кВ"]
["2) от 50 до 100 квадратных мм включительно","от 50 до 100 квадратных мм включительно",null,"3) от 100 до 200 квадратных мм включительно","от 100 до 200 квадратных мм включительно",null,null,"2) от 5 до 10 включительно","от 5 до 10 включительно",null,"11) от 3150 кВА до 4000 кВА включительно","мощностью  от 3150 кВА до 4000 кВА включительно",null,"11) свыше 3150 кВА","свыше 3150 кВА",null,"3) 110/35 кВ","110/35 кВ"]
["3) от 100 до 200 квадратных мм включительно","от 100 до 200 квадратных мм включительно",null,"4) от 200 до 250 квадратных мм включительно","от 200 до 250 квадратных мм включительно",null,null,"3) от 10 до 15 включительно","от 10 до 15 включительно",null,"12) свыше 4000 кВА","мощностью свыше 4000 кВА",null,"1) 6(10)/0,4 кВ","6(10)/0,4 кВ",null,"4) 110/6(10) кВ","110/6(10) кВ"]
["4) от 200 до 500 квадратных мм включительно","от 200 до 500 квадратных мм включительно",null,"5) от 250 до 300 квадратных мм включительно","от 250 до 300 квадратных мм включительно",null,null,"4) свыше 15","свыше 15",null,"1) столбового/мачтового","столбового/мачтового типа",null,"2) 20/0,4 кВ","20/0,4 кВ",null,"5) 110/35/6(10) кВ","110/35/6(10) кВ"]
["5) от 500 до 800 квадратных мм включительно","от 500 до 800 квадратных мм включительно",null,"6) от 300 до 400 квадратных мм включительно","от 300 до 400 квадратных мм включительно",null,null,"1) 0,4 кВ и ниже","0,4 кВ и ниже",null,"2) шкафного или киоскового ","шкафного или киоскового типа",{"$nulls":4},"1) один","однотрансформаторные подстанции"]
["6) свыше 800 квадратных мм","свыше 800 квадратных мм",null,"7) от 400 до 500 квадратных мм включительно","от 400 до 500 квадратных мм включительно",null,null,"2) 1 - 20  кВ","1 - 20  кВ",null,"3) блочного","блочного типа",{"$nulls":4},"2) два","двухтрансформаторные подстанции"]
["1) Одноцепные ","одноцепные ",null,"8) от 500 до 800 квадратных мм включительно","от 500 до 800 квадратных мм включительно",null,null,"3) 35 кВ","35 кВ",null,"1) 6/0,4 кВ","6/0,4 кВ"]
["2) Двухцепные","двухцепные",null,"9) свыше 800 квадратных мм","свыше 800 квадратных мм",null,null,"4) 110 кВ и выше","110 кВ и выше",null,"2) 10/0,4 кВ","10/0,4 кВ"]
["1) 0,4 кВ и ниже",0.4,null,"1) один","с одним кабелем","с одной трубой в скважине",{"$nulls":4},"3) 20/0,4 кВ","20/0,4 кВ"]
["2) 1 - 20  кВ","1 - 20",null,"2) два","с двумя кабелями","с двумя трубами в скважине",{"$nulls":4},"4) 6/10\n(10/6) кВ","6/10\n(10/6) кВ"]
["3) 27,5 - 60 кВ","27,5 - 60",null,"3) три","с тремя кабелями","с тремя трубами в скважине",{"$nulls":4},"5) 10/20\n(20/10) кВ","10/20\n(20/10) кВ"]
["4) 110 кВ и выше",110,null,"4) четыре","с четырьмя кабелями","с четырьмя трубами в скважине",{"$nulls":4},"6) 6/20\n(20/6) кВ","6/20\n(20/6) кВ"]
[{"$nulls":3},"5) более четырех","кабелей более четырех","труб более четырех"]
[{"$nulls":3},"1) 0,4 кВ и ниже","0,4 кВ и ниже"]
[{"$nulls":3},"2) 1 - 10  кВ","1 - 10  кВ"]
[{"$nulls":3},"3) 15 - 20 кВ","15 - 20 кВ"]
[{"$nulls":3},"4) 27,5 - 60 кВ","27,5 - 60 кВ"]
[{"$nulls":3},"5) 110 кВ и выше","110 кВ и выше"]

{"sheet":"Приложение","index":15,"n_rows":26,"n_cols":6,"rows_kept":26,"merged":[[0,1,3,5]]}
[null,{"$f":"\"Расчет фактических расходов на выполнение мероприятий по технологическому присоединению, предусмотренных подпунктами 'а' и 'в' пункта 16 Методических указаний, за \" & Титульный!D10-4 & \"-\" & Титульный!D10-2 & \" гг.\"&\n\"(выполняется отдельно по мероприятиям, \nпредусмотренным подпунктами 'а' и 'в' пункта 16 Методических указаний)\"","v":"Расчет фактических расходов на выполнение мероприятий по технологическому присоединению, предусмотренных подпунктами 'а' и 'в' пункта 16 Методических указаний, за 2018-2020 гг.(выполняется отдельно по мероприятиям, \nпредусмотренным подпунктами 'а' и 'в' пункта 16 Методических указаний)"}]
[]
[]
[]
[{"$nulls":5},"руб."]
[null,"N п/п","Показатели",{"$f":"\"Данные за предыдущий период регулирования (n-2) \"& Титульный!D10-2 & \" год\"","v":"Данные за предыдущий период регулирования (n-2) 2020 год"},{"$f":"\"Данные за год (n-3), предшествующий предыдущему периоду регулирования \"\n& Титульный!D10-3 & \" год\"","v":"Данные за год (n-3), предшествующий предыдущему периоду регулирования 2019 год"},{"$f":"\"Данные за год (n-4), предшествующий году (n-3) \"\n& Титульный!D10-4 &\" год\"","v":"Данные за год (n-4), предшествующий году (n-3) 2018 год"}]
[null,1,2,3,4,5]
[null,"1.","Расходы по выполнению мероприятий по технологическому присоединению, всего",{"$f":"D9+D10+D11+D12+D13","v":{"v":367760.83,"d":"367,760.83"}},{"$f":"E9+E10+E11+E12+E13","v":{"v":70289.06999999999,"d":"70,289.07"}},{"$f":"F9+F10+F11+F12+F13","v":{"v":95066.87,"d":"95,066.87"}}]
[null,"1.1.","Вспомогательные материалы",{"v":0,"d":"0.00"},{"v":0,"d":"0.00"},{"v":0,"d":"0.00"}]
[null,"1.2.","Энергия на хозяйственные нужды",{"v":0,"d":"0.00"},{"v":0,"d":"0.00"},{"v":0,"d":"0.00"}]
[null,"1.3.","Оплата труда ППП",{"$f":"66979.74","v":{"v":66979.74,"d":"66,979.74"}},{"v":44026.42,"d":"44,026.42"},{"v":31953.88,"d":"31,953.88"}]
[null,"1.4.","Отчисления на страховые взносы",{"$f":"13692.45","v":{"v":13692.45,"d":"13,692.45"}},{"v":7753.48,"d":"7,753.48"},{"v":4944.12,"d":"4,944.12"}]
[null,"1.5.","Прочие расходы, всего, в том числе:",{"$f":"D14+D15+D16","v":{"v":287088.64,"d":"287,088.64"}},{"$f":"E14+E15+E16","v":{"v":18509.17,"d":"18,509.17"}},{"$f":"F14+F15+F16","v":{"v":58168.87,"d":"58,168.87"}}]
[null,"1.5.1.","- работы и услуги производственного характера",{"v":12910,"d":"12,910.00"},{"v":7707.03,"d":"7,707.03"},{"v":58041.130000000005,"d":"58,041.13"}]
[null,"1.5.2.","- налоги и сборы, уменьшающие налогооблагаемую базу на прибыль организаций, всего",160.78,176.14,{"v":0,"d":"0.00"}]
[null,"1.5.3.","- работы и услуги непроизводственного характера, в том числе:",{"$f":"D17+D18+D19+D20+D21","v":{"v":274017.86,"d":"274,017.86"}},{"$f":"E17+E18+E19+E20+E21","v":{"v":10626,"d":"10,626.00"}},{"$f":"F17+F18+F19+F20+F21","v":127.74}]
[null,"1.5.3.1.","услуги связи",{"v":0,"d":"0.00"},{"v":0,"d":"0.00"},{"v":0,"d":"0.00"}]
[null,"1.5.3.2.","расходы на охрану и пожарную безопасность",{"v":0,"d":"0.00"},{"v":0,"d":"0.00"},{"v":0,"d":"0.00"}]
[null,"1.5.3.3.","расходы на информационное обслуживание, иные услуги, связанные с деятельностью по технологическому присоединению",{"v":0,"d":"0.00"},{"v":0,"d":"0.00"},{"v":0,"d":"0.00"}]
[null,"1.5.3.4.","плата за аренду имущества",{"v":0,"d":"0.00"},{"v":0,"d":"0.00"},{"v":0,"d":"0.00"}]
[null,"1.5.3.5.","другие прочие расходы, связанные с производством и реализацией",{"v":274017.86,"d":"274,017.86"},{"v":10626,"d":"10,626.00"},127.74]
[null,"1.6.","Внереализационные расходы, всего",{"$f":"D23+D24+D25+D26","v":{"v":0,"d":"0.00"}},{"$f":"E23+E24+E25+E26","v":{"v":0,"d":"0.00"}},{"$f":"F23+F24+F25+F26","v":{"v":0,"d":"0.00"}}]
[null,"1.6.1.","- расходы на услуги банков",{"v":0,"d":"0.00"},{"v":0,"d":"0.00"},{"v":0,"d":"0.00"}]
[null,"1.6.2.","- % за пользование кредитом",{"v":0,"d":"0.00"},{"v":0,"d":"0.00"},{"v":0,"d":"0.00"}]
[null,"1.6.3.","- прочие обоснованные расходы",{"v":0,"d":"0.00"},{"v":0,"d":"0.00"},{"v":0,"d":"0.00"}]
[null,"1.6.4.","- денежные выплаты социального характера (по Коллективному договору)",{"v":0,"d":"0.00"},{"v":0,"d":"0.00"},{"v":0,"d":"0.00"}]